{"text_format":"3","workbook":"xlsx","n_sheets":1,"sheets":["Plan. Orçamento Época Festiva"],"not_rendered":{"defined_names":1},"read":"whole","date_system":"1900"}

{"sheet":"Plan. Orçamento Época Festiva","index":0,"n_rows":37,"n_cols":12,"rows_kept":37,"merged":[[1,1,7,4],[9,1,9,4],[9,8,9,11],[19,1,19,4],[19,8,19,11],[30,1,30,4],[30,8,30,11]]}
[]
[null,"Plan. Orçamento Época Festiva"]
[]
[{"$nulls":8},"ORÇAMENTO PARA ÉPOCA FESTIVA",null,{"$f":"SUM(Presentes[Orçamento],Embrulhos[Orçamento],(Viagens[Orçamento],(Refeições[Orçamento],(Lazer[Orçamento],Diversos[Orçamento]))))","v":{"v":750,"d":"750.00 €"}}]
[{"$nulls":8},"GASTO REAL",null,{"$f":"SUM((Presentes[Real],(Embrulhos[Rendimentos Reais],(Viagens[Real],(Refeições[Real],(Lazer[Rendimentos Reais],(Diversos[Real])))))))","v":{"v":820,"d":"820.00 €"}}]
[]
[{"$nulls":8},"DIFERENÇA (acima/abaixo do orçamento)",null,{"$f":"SUM(K4-K5)","v":{"v":-70,"d":"-70.00 €"}}]
[]
[]
[null,"Presentes",{"$nulls":6},"Refeições de Época Festiva"]
[null,"Item","Orçamento","Real","Diferença",{"$nulls":3},"Item","Orçamento","Real","Diferença"]
[null,"Família",{"v":500,"d":"500.00 €"},{"v":495,"d":"495.00 €"},{"$f":"Presentes[[#This Row],[Orçamento]]-Presentes[[#This Row],[Real]]","v":{"v":5,"d":"5.00 €"}},{"$nulls":3},"Compras",null,null,{"$f":"Refeições[[#This Row],[Orçamento]]-Refeições[[#This Row],[Real]]","v":{"v":0,"d":"0.00 €"}}]
[null,"Amigos",{"v":250,"d":"250.00 €"},{"v":325,"d":"325.00 €"},{"$f":"Presentes[[#This Row],[Orçamento]]-Presentes[[#This Row],[Real]]","v":{"v":-75,"d":"-75.00 €"}},{"$nulls":3},"Libações",null,null,{"$f":"Refeições[[#This Row],[Orçamento]]-Refeições[[#This Row],[Real]]","v":{"v":0,"d":"0.00 €"}}]
[null,"Colegas de trabalho",null,null,{"$f":"Presentes[[#This Row],[Orçamento]]-Presentes[[#This Row],[Real]]","v":{"v":0,"d":"0.00 €"}},{"$nulls":3},"Decorações",null,null,{"$f":"Refeições[[#This Row],[Orçamento]]-Refeições[[#This Row],[Real]]","v":{"v":0,"d":"0.00 €"}}]
[null,"Professores, amas, baby-sitters, etc.",null,null,{"$f":"Presentes[[#This Row],[Orçamento]]-Presentes[[#This Row],[Real]]","v":{"v":0,"d":"0.00 €"}},{"$nulls":3},"Outros (separador na última coluna desta linha para adicionar linha)",null,null,{"$f":"Refeições[[#This Row],[Orçamento]]-Refeições[[#This Row],[Real]]","v":{"v":0,"d":"0.00 €"}}]
[null,"Donativos para a caridade",null,null,{"$f":"Presentes[[#This Row],[Orçamento]]-Presentes[[#This Row],[Real]]","v":{"v":0,"d":"0.00 €"}},{"$nulls":3},"Total",{"$f":"SUBTOTAL(109,Refeições[Orçamento])","v":{"v":0,"d":"0.00 €"}},{"$f":"SUBTOTAL(109,Refeições[Real])","v":{"v":0,"d":"0.00 €"}},{"$f":"SUBTOTAL(109,Refeições[Diferença])","v":{"v":0,"d":"0.00 €"}}]
[null,"Outros (separador na última coluna desta linha para adicionar linha)",null,null,{"$f":"Presentes[[#This Row],[Orçamento]]-Presentes[[#This Row],[Real]]","v":{"v":0,"d":"0.00 €"}}]
[null,"Total",{"$f":"SUBTOTAL(109,Presentes[Orçamento])","v":{"v":750,"d":"750.00 €"}},{"$f":"SUBTOTAL(109,Presentes[Real])","v":{"v":820,"d":"820.00 €"}},{"$f":"SUBTOTAL(109,Presentes[Diferença])","v":{"v":-70,"d":"-70.00 €"}}]
[]
[null,"Embrulho",{"$nulls":6},"Lazer"]
[null,"Item","Orçamento","Rendimentos Reais","Diferença",{"$nulls":3},"Item","Orçamento","Rendimentos Reais","Diferença"]
[null,"Papel de embrulho",null,null,{"$f":"Embrulhos[[#This Row],[Orçamento]]-Embrulhos[[#This Row],[Rendimentos Reais]]","v":{"v":0,"d":"0.00 €"}},{"$nulls":3},"Ajuda para a festa (empregado de bar, catering, limpeza, etc.)",null,null,{"$f":"Lazer[[#This Row],[Orçamento]]-Lazer[[#This Row],[Rendimentos Reais]]","v":{"v":0,"d":"0.00 €"}}]
[null,"Etiquetas",null,null,{"$f":"Embrulhos[[#This Row],[Orçamento]]-Embrulhos[[#This Row],[Rendimentos Reais]]","v":{"v":0,"d":"0.00 €"}},{"$nulls":3},"Decorações",null,null,{"$f":"Lazer[[#This Row],[Orçamento]]-Lazer[[#This Row],[Rendimentos Reais]]","v":{"v":0,"d":"0.00 €"}}]
[null,"Materiais (laços, fitas, etc.)",null,null,{"$f":"Embrulhos[[#This Row],[Orçamento]]-Embrulhos[[#This Row],[Rendimentos Reais]]","v":{"v":0,"d":"0.00 €"}},{"$nulls":3},"Alimentação e bebidas",null,null,{"$f":"Lazer[[#This Row],[Orçamento]]-Lazer[[#This Row],[Rendimentos Reais]]","v":{"v":0,"d":"0.00 €"}}]
[null,"Caixas",null,null,{"$f":"Embrulhos[[#This Row],[Orçamento]]-Embrulhos[[#This Row],[Rendimentos Reais]]","v":{"v":0,"d":"0.00 €"}},{"$nulls":3},"Vestuário",null,null,{"$f":"Lazer[[#This Row],[Orçamento]]-Lazer[[#This Row],[Rendimentos Reais]]","v":{"v":0,"d":"0.00 €"}}]
[null,"Correio",null,null,{"$f":"Embrulhos[[#This Row],[Orçamento]]-Embrulhos[[#This Row],[Rendimentos Reais]]","v":{"v":0,"d":"0.00 €"}},{"$nulls":3},"Bilhetes",null,null,{"$f":"Lazer[[#This Row],[Orçamento]]-Lazer[[#This Row],[Rendimentos Reais]]","v":{"v":0,"d":"0.00 €"}}]
[null,"Outros (separador na última coluna desta linha para adicionar linha)",null,null,{"$f":"Embrulhos[[#This Row],[Orçamento]]-Embrulhos[[#This Row],[Rendimentos Reais]]","v":{"v":0,"d":"0.00 €"}},{"$nulls":3},"Jantares fora",null,null,{"$f":"Lazer[[#This Row],[Orçamento]]-Lazer[[#This Row],[Rendimentos Reais]]","v":{"v":0,"d":"0.00 €"}}]
[null,"Total",{"$f":"SUBTOTAL(109,Embrulhos[Orçamento])","v":{"v":0,"d":"0.00 €"}},{"$f":"SUBTOTAL(109,Embrulhos[Rendimentos Reais])","v":{"v":0,"d":"0.00 €"}},{"$f":"SUBTOTAL(109,Embrulhos[Diferença])","v":{"v":0,"d":"0.00 €"}},{"$nulls":3},"Outros (separador na última coluna desta linha para adicionar linha)",null,null,{"$f":"Lazer[[#This Row],[Orçamento]]-Lazer[[#This Row],[Rendimentos Reais]]","v":{"v":0,"d":"0.00 €"}}]
[{"$nulls":8},"Total",{"$f":"SUBTOTAL(109,Lazer[Orçamento])","v":{"v":0,"d":"0.00 €"}},{"$f":"SUBTOTAL(109,Lazer[Rendimentos Reais])","v":{"v":0,"d":"0.00 €"}},{"$f":"SUBTOTAL(109,Lazer[Diferença])","v":{"v":0,"d":"0.00 €"}}]
[]
[null,"Viagens",{"$nulls":6},"Diversos"]
[null,"Item","Orçamento","Real","Diferença",{"$nulls":3},"Item","Orçamento","Real","Diferença"]
[null,"Passagens Aéreas",null,null,{"$f":"Viagens[[#This Row],[Orçamento]]-Viagens[[#This Row],[Real]]","v":{"v":0,"d":"0.00 €"}},{"$nulls":3},"Fotografias de época festiva",null,null,{"$f":"Diversos[[#This Row],[Orçamento]]-Diversos[[#This Row],[Real]]","v":{"v":0,"d":"0.00 €"}}]
[null,"Alojamento",null,null,{"$f":"Viagens[[#This Row],[Orçamento]]-Viagens[[#This Row],[Real]]","v":{"v":0,"d":"0.00 €"}},{"$nulls":3},"Combustível ",null,null,{"$f":"Diversos[[#This Row],[Orçamento]]-Diversos[[#This Row],[Real]]","v":{"v":0,"d":"0.00 €"}}]
[null,"Transportes",null,null,{"$f":"Viagens[[#This Row],[Orçamento]]-Viagens[[#This Row],[Real]]","v":{"v":0,"d":"0.00 €"}},{"$nulls":3},"Outros (separador na última coluna desta linha para adicionar linha)",null,null,{"$f":"Diversos[[#This Row],[Orçamento]]-Diversos[[#This Row],[Real]]","v":{"v":0,"d":"0.00 €"}}]
[null,"Outros (separador na última coluna desta linha para adicionar linha)",null,null,{"$f":"Viagens[[#This Row],[Orçamento]]-Viagens[[#This Row],[Real]]","v":{"v":0,"d":"0.00 €"}},{"$nulls":3},"Total",{"$f":"SUBTOTAL(109,Diversos[Orçamento])","v":{"v":0,"d":"0.00 €"}},{"$f":"SUBTOTAL(109,Diversos[Real])","v":{"v":0,"d":"0.00 €"}},{"$f":"SUBTOTAL(109,Diversos[Diferença])","v":{"v":0,"d":"0.00 €"}}]
[null,"Total",{"$f":"SUBTOTAL(109,Viagens[Orçamento])","v":{"v":0,"d":"0.00 €"}},{"$f":"SUBTOTAL(109,Viagens[Real])","v":{"v":0,"d":"0.00 €"}},{"$f":"SUBTOTAL(109,Viagens[Diferença])","v":{"v":0,"d":"0.00 €"}}]